fUST/lending_fUST_20251229
["ID","MTS","AMOUNT","RATE_DAILY","PERIOD"]
[400009770,1767018247176,-400.9994829,0.00035,120]
[400009771,1767018247201,-101050.77249283,0.00035,120]
[400009772,1767018247226,-209.4160242,0.00035,120]
[400009773,1767018247251,-6000.0,0.00035,60]
[400009774,1767018247276,-216.9691029,0.00035,30]
[400009775,1767018247301,-600.0,0.00035,90]
[400009776,1767018247327,-50000.0,0.00035,30]
[400009777,1767018247353,-4943.62698148,0.00035,120]
[400009778,1767018247377,-1015.80280141,0.00035,120]
[400009779,1767018247401,-542.1081793,0.00035,30]
[400009780,1767018247428,-100000.0,0.00035,30]
[400009781,1767018247452,-150.0,0.00035,69]
[400009782,1767018247478,-150.1,0.00035,30]
[400009783,1767018247502,-5000.0,0.00035,30]
[400009784,1767018247527,-5000.0,0.00035,30]
[400009785,1767018247556,-5000.0,0.00035,30]
[400009786,1767018247584,-338.28929,0.00035,61]
[400009787,1767018247610,-200.0,0.00035,120]
[400009788,1767018247635,-746.57051447,0.00035,30]
[400009789,1767018247661,-5000.0,0.00035,80]
[400009790,1767018247705,-111275.77802694,0.00035,30]
[400009791,1767018247747,-38921.7341702,0.00035,30]
[400009792,1767018247789,-6000.0,0.00035,30]
[400009793,1767018247830,-2000.0,0.00035068,120]
[400009794,1767018247868,-2000.0,0.00035068,120]
[400009795,1767018247906,-2307.83,0.000351,60]
[400009796,1767018247961,-2307.83,0.000352,60]
[400009797,1767018248009,-647.04018327,0.00035272,120]
[400009798,1767018248054,-2307.83,0.000353,60]
[400009799,1767018248100,-2000.0,0.00035342,120]
[400009800,1767018248146,-1586.78,0.00035342,38]
[400009801,1767018248191,-1414.0,0.00035342,120]
[400009802,1767018248242,-2307.83,0.000354,60]
[400009803,1767018248288,-18481.65405555,0.0003544,30]
[400009804,1767018248334,-205.0,0.0003547,41]
[400009805,1767018248382,-2307.83,0.000355,60]
[400009806,1767018248427,-50000.0,0.000355,31]
[400009807,1767018248473,-300.0,0.000355,30]
[400009808,1767018248521,-2307.83,0.000356,60]
[400009809,1767018248568,-2000.0,0.00035616,120]
[400009810,1767018248619,-2000.0,0.00035616,120]
[400009811,1767018248662,-151.0,0.00035616,31]
[400009812,1767018248702,-151.0,0.00035616,31]
[400009813,1767018248744,-151.0,0.00035616,31]
[400009814,1767018248785,-151.0,0.00035616,31]
[400009815,1767018248829,-151.047453,0.00035616,31]
[400009816,1767018248879,-159.01,0.00035623,60]
[400009817,1767018248932,-2307.83,0.000357,60]
[400009818,1767018248981,-159.01,0.00035723,60]
[400009819,1767018249031,-2307.83,0.000358,60]
[400009820,1767018249077,-159.01,0.00035823,60]
[400009821,1767018249124,-200.0,0.00035824,120]
[400009822,1767018249168,-2000.0,0.0003589,120]
[400009823,1767018249213,-1586.78,0.0003589,39]
[400009824,1767018249258,-2307.83,0.000359,60]
[400009825,1767018249299,-2000.0,0.000359,120]
[400009826,1767018249341,-159.0340243,0.00035923,60]
[400009827,1767018249385,-150.07,0.00035938,60]
[400009828,1767018249427,-165.78276811,0.00035938,60]
[400009829,1767018249469,-300.0,0.0003598,120]
[400009830,1767018249508,-2307.83,0.00036,60]
[400009831,1767018249549,-1000.0,0.00036,120]
[400009832,1767018249588,-400.0,0.00036,120]
[400009833,1767018249630,-150.0,0.00036,120]
[400009834,1767018249669,-1000.0,0.00036,120]
[400009835,1767018249709,-300.0,0.00036,30]
[400009836,1767018249747,-169.84734709,0.00036,120]
[400009837,1767018249786,-5000.0,0.00036,30]
[400009838,1767018249825,-5000.0,0.00036,30]
[400009839,1767018249865,-5000.0,0.00036,30]
[400009840,1767018249905,-5000.0,0.00036,30]
[400009841,1767018249945,-5000.0,0.00036,30]
[400009842,1767018250158,-150.07,0.00036038,60]
[400009843,1767018250200,-200.0,0.00036053,120]
[400009844,1767018250244,-2307.83,0.000361,60]
[400009845,1767018250286,-50000.0,0.000361,35]
[400009846,1767018250327,-200.0,0.00036128,120]
[400009847,1767018250366,-150.07,0.00036138,60]
[400009848,1767018250405,-200.0,0.00036146,120]
[400009849,1767018250445,-2000.0,0.00036164,120]
[400009850,1767018250485,-500.0,0.00036164,30]
[400009851,1767018250522,-318.68,0.00036164,30]
[400009852,1767018250564,-159.34,0.00036164,30]
[400009853,1767018250606,-2307.83,0.000362,60]
[400009854,1767018250643,-50000.0,0.000362,40]
[400009855,1767018250679,-200.0,0.00036213,120]
[400009856,1767018250716,-200.0,0.00036213,120]
[400009857,1767018250753,-200.0,0.00036213,120]
[400009858,1767018250791,-150.07,0.00036238,60]
[400009859,1767018250830,-200.0,0.00036243,120]
[400009860,1767018250869,-319.0,0.00036247,30]
[400009861,1767018250908,-323.0,0.00036247,30]
[400009862,1767018250949,-200.0,0.00036264,120]
[400009863,1767018250989,-2307.83,0.000363,60]
[400009864,1767018251029,-150.07,0.00036338,60]
[400009865,1767018251072,-1000.0,0.0003637,120]
[400009866,1767018251112,-200.0,0.00036384,120]
[400009867,1767018251158,-2307.83,0.000364,60]
[400009868,1767018251198,-2000.0,0.00036438,120]
[400009869,1767018251239,-1586.78,0.00036438,40]
[400009870,1767018251280,-150.07,0.00036438,60]
[400009871,1767018251323,-200.0,0.00036475,120]
[400009872,1767018251365,-2000.0,0.00036488,120]
[400009873,1767018251408,-2307.83,0.000365,60]
[400009874,1767018251449,-200.0,0.000365,30]
[400009875,1767018251489,-150.07,0.00036538,60]
[400009876,1767018251531,-2307.83,0.000366,60]
[400009877,1767018251573,-200.0,0.00036612,120]
[400009878,1767018251612,-150.07,0.00036638,60]
[400009879,1767018251652,-200.0,0.00036643,120]
[400009880,1767018251693,-2307.83,0.000367,60]
[400009881,1767018251734,-2000.0,0.00036712,120]
[400009882,1767018251777,-150.07,0.00036738,60]
[400009883,1767018251817,-36919.12522373,0.00036789,60]
[400009884,1767018251858,-2307.83,0.000368,60]
[400009885,1767018251899,-150.07,0.00036838,60]
[400009886,1767018251939,-2307.83,0.000369,60]
[400009887,1767018251976,-2000.0,0.000369,120]
[400009888,1767018252015,-200.0,0.00036923,120]
[400009889,1767018252052,-150.07,0.00036938,60]
[400009890,1767018252090,-1200.04646866,0.00036956,120]
[400009891,1767018252129,-2000.0,0.00036986,120]
[400009892,1767018252170,-1586.78,0.00036986,41]
[400009893,1767018252210,-1000.0,0.00036999,120]
[400009894,1767018252251,-4507.84456499,0.00036999,120]
[400009895,1767018252292,-2307.83,0.00037,60]
[400009896,1767018252331,-400.0,0.00037,120]
[400009897,1767018252372,-150.0,0.00037,120]
[400009898,1767018252412,-1007.0,0.00037,120]
[400009899,1767018252455,-2582.1323086,0.00037,30]
[400009900,1767018252497,-300.0,0.00037,30]
[400009901,1767018252537,-152.4999123,0.00037,120]
[400009902,1767018252574,-5082.0,0.00037,30]
[400009903,1767018252613,-152.77509044,0.00037,120]
[400009904,1767018252651,-6000.0,0.00037,30]
[400009905,1767018252691,-200.0,0.00037001,120]
[400009906,1767018252730,-150.07,0.00037038,60]
[400009907,1767018252771,-2307.83,0.000371,60]
[400009908,1767018252809,-150.07,0.00037138,60]
[400009909,1767018252848,-200.0,0.00037197,120]
[400009910,1767018252888,-2307.83,0.000372,60]
[400009911,1767018252927,-818.44,0.000372,120]
[400009912,1767018252964,-150.07,0.00037238,60]
[400009913,1767018253004,-200.0,0.00037256,120]
[400009914,1767018253041,-2000.0,0.0003726,120]
[400009915,1767018253081,-686.12314736,0.00037272,120]
[400009916,1767018253121,-2307.83,0.000373,60]
[400009917,1767018253164,-171043.01376586,0.000373,30]
[400009918,1767018253205,-4789.61500033,0.000373,120]
[400009919,1767018253246,-1105.48,0.000373,120]
[400009920,1767018253286,-2210.89,0.00037323,60]
[400009921,1767018253326,-150.07,0.00037338,60]
[400009922,1767018253365,-200.0,0.00037386,120]
[400009923,1767018253408,-200.0,0.00037391,120]
[400009924,1767018253451,-2307.83,0.000374,60]
[400009925,1767018253491,-200.0,0.00037415,120]
[400009926,1767018253537,-2210.89,0.00037423,60]
[400009927,1767018253575,-150.07,0.00037438,60]
[400009928,1767018253614,-200.0,0.00037455,120]
[400009929,1767018253652,-2307.83,0.000375,60]
[400009930,1767018253688,-4000.0,0.000375,60]
[400009931,1767018253727,-2210.89,0.00037523,60]
[400009932,1767018253766,-368.18256078,0.0003753,120]
[400009933,1767018253804,-2000.0,0.00037534,120]
[400009934,1767018253843,-1586.78,0.00037534,42]
[400009935,1767018253883,-150.07,0.00037538,60]
[400009936,1767018254063,-200.0,0.00037578,120]
[400009937,1767018254122,-200.0,0.00037596,120]
[400009938,1767018254163,-200.0,0.00037596,120]
[400009939,1767018254203,-200.0,0.00037596,120]
[400009940,1767018254244,-2307.83,0.000376,60]
[400009941,1767018254286,-2210.89,0.00037623,60]
[400009942,1767018254326,-150.07,0.00037638,60]
[400009943,1767018254366,-151.0,0.0003764,30]
[400009944,1767018254406,-156.587,0.0003764,30]
[400009945,1767018254449,-162.380719,0.0003764,30]
[400009946,1767018254493,-1133.01955115,0.0003764,30]
[400009947,1767018254535,-151.0,0.0003764,30]
[400009948,1767018254575,-250.0,0.0003764,30]
[400009949,1767018254614,-250.0,0.0003764,30]
[400009950,1767018254654,-500.0,0.0003764,30]
[400009951,1767018254695,-250.0,0.0003764,30]
[400009952,1767018254736,-160.0,0.0003764,30]
[400009953,1767018254777,-151.0,0.0003764,30]
[400009954,1767018254819,-250.0,0.0003764,30]
[400009955,1767018254860,-500.0,0.0003764,30]
[400009956,1767018254906,-250.0,0.0003764,30]
[400009957,1767018254949,-250.0,0.0003764,30]
[400009958,1767018254992,-646.41620321,0.0003764,30]
[400009959,1767018255039,-282.13637522,0.0003764,35]
[400009960,1767018255080,-151.0,0.0003764,30]
[400009961,1767018255121,-250.0,0.0003764,30]
[400009962,1767018255164,-505.7630867,0.0003764,30]
[400009963,1767018255207,-250.0,0.0003764,30]
[400009964,1767018255250,-250.0,0.0003764,30]
[400009965,1767018255292,-500.0,0.0003764,30]
[400009966,1767018255332,-500.0,0.0003764,30]
[400009967,1767018255372,-500.0,0.0003764,30]
[400009968,1767018255412,-414.0,0.0003764,30]
[400009969,1767018255452,-2000.0,0.0003764,30]
[400009970,1767018255493,-500.0,0.0003764,30]
[400009971,1767018255536,-500.0,0.0003764,30]
[400009972,1767018255576,-429.318,0.0003764,30]
[400009973,1767018255613,-2074.0,0.0003764,30]
[400009974,1767018255649,-505.48658761,0.0003764,30]
[400009975,1767018255687,-445.202766,0.0003764,30]
[400009976,1767018255725,-151.0,0.0003764,30]
[400009977,1767018255762,-2150.738,0.0003764,30]
[400009978,1767018255801,-151.0,0.0003764,30]
[400009979,1767018255843,-151.0,0.0003764,30]
[400009980,1767018255882,-151.0,0.0003764,30]
[400009981,1767018255920,-151.0,0.0003764,30]
[400009982,1767018255961,-151.0,0.0003764,30]
[400009983,1767018256008,-151.0,0.0003764,30]
[400009984,1767018256051,-151.0,0.0003764,30]
[400009985,1767018256090,-151.0,0.0003764,30]
[400009986,1767018256135,-151.04094057,0.0003764,30]
[400009987,1767018256179,-151.0,0.0003764,30]
[400009988,1767018256222,-151.0,0.0003764,30]
[400009989,1767018256267,-151.0,0.0003764,30]
[400009990,1767018256307,-156.587,0.0003764,30]
[400009991,1767018256350,-162.380719,0.0003764,30]
[400009992,1767018256393,-151.0,0.0003764,30]
[400009993,1767018256437,-151.0,0.0003764,30]
[400009994,1767018256478,-151.0,0.0003764,30]
[400009995,1767018256519,-269.08488439,0.0003764,30]
[400009996,1767018256561,-151.0,0.0003764,30]
[400009997,1767018256600,-3888.0,0.0003764,30]
[400009998,1767018256641,-4031.856,0.0003764,30]
[400009999,1767018256682,-4214.11382915,0.0003764,30]
[400010000,1767018256726,-7122.0,0.00037641,30]
[400010001,1767018256772,-319.0,0.00037696,30]
[400010002,1767018256816,-2307.83,0.000377,60]
[400010003,1767018256860,-2210.89,0.00037723,60]
[400010004,1767018256902,-150.07,0.00037738,60]
[400010005,1767018256945,-573.04759985,0.00037753,120]
[400010006,1767018256983,-157.0,0.00037781,104]
[400010007,1767018257024,-2307.83,0.000378,60]
[400010008,1767018257063,-2000.0,0.00037808,120]
[400010009,1767018257103,-2210.89,0.00037823,60]
[400010010,1767018257144,-200.0,0.00037837,120]
[400010011,1767018257185,-150.07,0.00037838,60]
[400010012,1767018257227,-200.0,0.00037851,120]
[400010013,1767018257270,-2307.83,0.000379,60]
[400010014,1767018257316,-2000.0,0.000379,120]
[400010015,1767018257360,-2210.89,0.00037923,60]
[400010016,1767018257403,-150.07,0.00037938,60]
[400010017,1767018257447,-319.0,0.00037973,30]
[400010018,1767018257491,-200.0,0.00037974,120]
[400010019,1767018257536,-2307.83,0.00038,60]
[400010020,1767018257581,-54721.0032928,0.00038,120]
[400010021,1767018257635,-400.0,0.00038,120]
[400010022,1767018257678,-150.0,0.00038,120]
[400010023,1767018257719,-181.142331,0.00038,120]
[400010024,1767018257764,-13181.0,0.00038,120]
[400010025,1767018257806,-2791.97788068,0.00038,60]
[400010026,1767018257851,-2395.77943827,0.00038,30]
[400010027,1767018257893,-500.42007524,0.00038,60]
[400010028,1767018257936,-5525.93148735,0.00038,30]
[400010029,1767018257987,-354.9857474,0.00038,120]
[400010030,1767018258158,-1985.52,0.00038,30]
[400010031,1767018258212,-2210.89,0.00038023,60]
[400010032,1767018258265,-150.07,0.00038038,60]
[400010033,1767018258310,-2000.0,0.00038082,120]
[400010034,1767018258366,-1586.78,0.00038082,43]
[400010035,1767018258422,-2308.0915643,0.000381,60]
[400010036,1767018258467,-2210.89,0.00038123,60]
[400010037,1767018258515,-150.07,0.00038138,60]
[400010038,1767018258564,-2210.89,0.00038223,60]
[400010039,1767018258610,-200.0,0.00038231,120]
[400010040,1767018258653,-150.22035712,0.00038238,60]
[400010041,1767018258694,-2210.89,0.00038323,60]
[400010042,1767018258737,-2000.0,0.00038356,120]
[400010043,1767018258780,-151.0,0.00038356,120]
[400010044,1767018258821,-151.0,0.00038356,120]
[400010045,1767018258863,-151.0,0.00038356,120]
[400010046,1767018258904,-151.0,0.00038356,120]
[400010047,1767018258947,-151.0,0.00038356,120]
[400010048,1767018258988,-151.0,0.00038356,120]
[400010049,1767018259029,-151.0,0.00038356,120]
[400010050,1767018259069,-151.0,0.00038356,120]
[400010051,1767018259110,-151.0,0.00038356,120]
[400010052,1767018259150,-151.0,0.00038356,120]
[400010053,1767018259190,-187.798692,0.00038356,120]
[400010054,1767018259232,-200.0,0.00038371,120]
[400010055,1767018259274,-200.0,0.00038417,120]
[400010056,1767018259318,-2210.89,0.00038423,120]
[400010057,1767018259362,-200.0,0.00038424,120]
[400010058,1767018259405,-200.0,0.00038458,120]
[400010059,1767018259448,-9000.0,0.000385,45]
[400010060,1767018259492,-2210.89,0.00038523,120]
[400010061,1767018259534,-2210.89,0.00038623,120]
[400010062,1767018259576,-1586.78,0.0003863,44]
[400010063,1767018259617,-200.0,0.00038655,120]
[400010064,1767018259656,-200.0,0.000387,120]
[400010065,1767018259695,-2210.89,0.00038723,120]
[400010066,1767018259732,-200.0,0.00038737,120]
[400010067,1767018259772,-2210.89,0.00038823,120]
[400010068,1767018259812,-2000.0,0.000389,120]
[400010069,1767018259854,-1000.0,0.000389,120]
[400010071,1767018259895,-1000.0,0.000389,120]
[400010072,1767018259937,-1000.0,0.000389,120]
[400010073,1767018259984,-1000.0,0.000389,120]
[400010074,1767018260034,-1000.0,0.000389,120]
[400010076,1767018260084,-1000.0,0.000389,120]
[400010077,1767018260127,-1000.0,0.000389,120]
[400010078,1767018260170,-1000.0,0.000389,120]
[400010079,1767018260213,-1000.0,0.000389,120]
[400010080,1767018260257,-1084.55,0.000389,120]
[400010082,1767018260301,-2210.89,0.00038923,120]
[400010083,1767018260344,-200.0,0.00038976,120]
[400010084,1767018260384,-5000.0,0.00039,50]
[400010085,1767018260424,-400.0,0.00039,120]
[400010086,1767018260464,-150.0,0.00039,120]
[400010088,1767018260503,-10000.0,0.00039,60]
[400010089,1767018260544,-7655.35462624,0.00039,30]
[400010090,1767018260581,-999.0,0.00039,120]
[400010091,1767018260619,-16610.47728683,0.00039,120]
[400010092,1767018260657,-6000.0,0.00039,30]
[400010094,1767018260694,-4000.0,0.00039,90]
[400010095,1767018260733,-2210.89,0.00039023,120]
[400010096,1767018260772,-200.0,0.00039088,120]
[400010097,1767018260811,-2210.89,0.00039123,120]
[400010098,1767018260852,-319.0,0.00039146,90]
[400010100,1767018260889,-1586.78,0.00039178,45]
[400010101,1767018260928,-200.0,0.0003919,120]
[400010102,1767018260973,-2210.89,0.00039223,120]
[400010103,1767018261012,-200.0,0.00039245,120]
[400010104,1767018261052,-200.0,0.00039257,120]
[400010105,1767018261091,-725.20611145,0.00039272,120]
[400010107,1767018261130,-2210.89,0.00039323,120]
[400010108,1767018261170,-200.0,0.00039327,120]
[400010109,1767018261211,-2000.0,0.000394,120]
[400010110,1767018261256,-2210.89,0.00039423,120]
[400010111,1767018261296,-200.0,0.00039484,120]
[400010113,1767018261337,-2210.89,0.00039523,120]
[400010114,1767018261379,-200.0,0.00039543,120]
[400010115,1767018261421,-2210.89,0.00039623,120]
[400010116,1767018261461,-319.0,0.00039699,90]
[400010117,1767018261507,-2210.89,0.00039723,120]
[400010119,1767018261549,-1586.78,0.00039726,46]
[400010120,1767018261590,-2210.89,0.00039823,120]
[400010121,1767018261627,-2000.0,0.000399,120]
[400010122,1767018261667,-2210.89,0.00039923,120]
[400010124,1767018261709,-1136.55976347,0.0004,30]
[400010125,1767018261749,-4998.89210252,0.0004,120]
[400010126,1767018261787,-400.0,0.0004,120]
[400010127,1767018261827,-200.0,0.0004,120]
[400010128,1767018261866,-3041.62902689,0.0004,120]
[400010130,1767018261905,-200.0,0.0004,120]
[400010131,1767018261948,-2080.73146129,0.0004,60]
[400010132,1767018261988,-1000.0,0.0004,120]
[400010133,1767018262029,-1000.0,0.0004,120]
[400010134,1767018262067,-1000.0,0.0004,120]
[400010135,1767018262104,-1000.0,0.0004,120]
[400010136,1767018262260,-1000.0,0.0004,120]
[400010137,1767018262302,-1000.0,0.0004,120]
[400010138,1767018262344,-1000.0,0.0004,120]
[400010139,1767018262384,-490.89,0.0004,120]
[400010140,1767018262425,-184.4357861,0.0004,30]
[400010141,1767018262468,-705426.77677809,0.0004,120]
[400010142,1767018274363,-544.00545139,0.0003318,30]
[400010143,1767018274405,-151.0,0.0003444,31]
[400010144,1767018274448,-232.36787,0.00036495,31]
[400010145,1767018274507,-6852.0,0.00037641,30]
[400010146,1767018274549,-93457.20503562,0.0004,120]
[400010147,1767018274590,-427.79317234,0.0004,30]
[400010148,1767018274632,-165.05665357,0.0004,120]
[400010149,1767018274672,-1902.66110783,0.0004,120]
[400010150,1767018274718,-124434.01971576,0.0004,120]
[400010151,1767018274766,-4771833.89099349,0.0004,120]
[400010152,1767018277622,-6567.0,0.00037641,30]
[400010153,1767018277664,-1077602.70572325,0.0004,120]
[400010154,1767018277704,-1789.03337707,0.0004,120]
[400010155,1767018277747,-58220.11507003,0.0004,120]
[400010156,1767018277786,-2168.95460882,0.0004,120]
[400010157,1767018277827,-1474.86210684,0.0004,120]
[400010158,1767018277868,-72695.24260777,0.0004,120]
[400010159,1767018277913,-2858.0,0.0004,120]
[400010160,1767018277955,-119999.999999,0.0004,30]
[400010161,1767018277994,-174.3372428,0.0004,120]
[400010162,1767018278033,-2028704.82140238,0.0004,120]
[400010163,1767018278077,-1041.66666667,0.0004,120]
[400010164,1767018278120,-6000.0,0.0004,30]
[400010165,1767018278171,-5000.0,0.0004,100]
[400010166,1767018278217,-2000.0,0.0004,120]
[400010167,1767018278264,-1041.66666667,0.0004,30]
[400010168,1767018278308,-6567.0,0.0004,30]
[400010169,1767018278358,-2210.89,0.00040023,120]
[400010170,1767018278409,-2210.89,0.00040123,120]
[400010171,1767018278457,-2210.89,0.00040223,120]
[400010172,1767018278500,-1586.78,0.00040273,47]
[400010173,1767018278541,-2210.89,0.00040323,120]
[400010174,1767018278773,-231.80633944,0.000404,120]
[400010175,1767018278815,-2210.89,0.00040423,120]
[400010176,1767018278856,-2210.89,0.00040523,120]
[400010177,1767018278897,-319.0,0.00040596,90]
[400010178,1767018278937,-2210.89,0.00040623,120]
[400010179,1767018278980,-2210.89,0.00040723,120]
[400010180,1767018279022,-1586.78,0.00040821,48]
[400010181,1767018279063,-2210.89,0.00040823,120]
[400010182,1767018279118,-2000.0,0.000409,120]
[400010183,1767018279161,-50000.0,0.000409,60]
[400010184,1767018279207,-2210.89,0.00040923,120]
[400010185,1767018279252,-200.0,0.00041,120]
[400010186,1767018279301,-1000.0,0.00041,120]
[400010187,1767018279348,-1000.0,0.00041,120]
[400010188,1767018279392,-2455.34,0.00041,120]
[400010189,1767018279435,-1014.0,0.00041,120]
[400010190,1767018279477,-1555.5027628,0.00041,120]
[400010191,1767018279520,-2210.89,0.00041023,120]
[400010192,1767018279569,-152.0,0.00041041,120]
[400010193,1767018279623,-152.0,0.00041041,120]
[400010194,1767018279670,-152.0,0.00041041,120]
[400010195,1767018279715,-152.0,0.00041041,120]
[400010196,1767018279757,-689.88,0.00041096,120]
[400010197,1767018279798,-1801.27,0.00041096,120]
[400010198,1767018279839,-179.30999932,0.000411,120]
[400010199,1767018279880,-179.30999932,0.000411,120]
[400010200,1767018279919,-179.30999932,0.000411,120]
[400010201,1767018279960,-179.3,0.000411,120]
[400010202,1767018280004,-152.14181761,0.000411,120]
[400010203,1767018280048,-152.14181761,0.000411,120]
[400010204,1767018280092,-152.14181761,0.000411,120]
[400010205,1767018280136,-152.14181761,0.000411,120]
[400010206,1767018280181,-152.14181761,0.000411,120]
[400010207,1767018280225,-152.14181761,0.000411,120]
[400010208,1767018280268,-152.14181761,0.000411,120]
[400010209,1767018280311,-152.14181761,0.000411,120]
[400010210,1767018280366,-152.14181761,0.000411,120]
[400010211,1767018280414,-152.14181761,0.000411,120]
[400010212,1767018280459,-152.14,0.000411,120]
[400010213,1767018280502,-153.31242401,0.000411,120]
[400010214,1767018280543,-153.31242401,0.000411,120]
[400010215,1767018280583,-153.31242401,0.000411,120]
[400010216,1767018280623,-153.31242401,0.000411,120]
[400010217,1767018280664,-153.31242401,0.000411,120]
[400010218,1767018280704,-153.31242401,0.000411,120]
[400010219,1767018280745,-153.31242401,0.000411,120]
[400010220,1767018280787,-153.31242401,0.000411,120]
[400010221,1767018280828,-153.31242401,0.000411,120]
[400010222,1767018280869,-153.31242401,0.000411,120]
[400010223,1767018280911,-153.31242401,0.000411,120]
[400010224,1767018280952,-153.31242401,0.000411,120]
[400010225,1767018281004,-153.31242401,0.000411,120]
[400010226,1767018281043,-153.31242401,0.000411,120]
[400010227,1767018281085,-153.31,0.000411,120]
[400010228,1767018281125,-268.29674203,0.000411,120]
[400010229,1767018281165,-268.29674203,0.000411,120]
[400010230,1767018281206,-268.29674203,0.000411,120]
[400010231,1767018281248,-268.29674203,0.000411,120]
[400010232,1767018281290,-268.29674203,0.000411,120]
[400010233,1767018281333,-268.29674203,0.000411,120]
[400010234,1767018281376,-268.29674203,0.000411,120]
[400010235,1767018281418,-268.29674203,0.000411,120]
[400010236,1767018281460,-268.29674203,0.000411,120]
[400010237,1767018281501,-268.29674203,0.000411,120]
[400010238,1767018281540,-268.29674203,0.000411,120]
[400010239,1767018281579,-268.29674203,0.000411,120]
[400010240,1767018281618,-268.29674203,0.000411,120]
[400010241,1767018281657,-268.29674203,0.000411,120]
[400010242,1767018281696,-268.29674203,0.000411,120]
[400010243,1767018281734,-268.29674203,0.000411,120]
[400010244,1767018281773,-268.29674203,0.000411,120]
[400010245,1767018281811,-268.29674203,0.000411,120]
[400010246,1767018281852,-268.29674203,0.000411,120]
[400010247,1767018281894,-268.29,0.000411,120]
[400010248,1767018281933,-165.9686386,0.000411,120]
[400010249,1767018281972,-165.9686386,0.000411,120]
[400010250,1767018282012,-165.9686386,0.000411,120]
[400010251,1767018282051,-165.9686386,0.000411,120]
[400010252,1767018282090,-165.9686386,0.000411,120]
[400010253,1767018282129,-165.9686386,0.000411,120]
[400010254,1767018282167,-165.9686386,0.000411,120]
[400010255,1767018282207,-165.96,0.000411,120]
[400010256,1767018282246,-154.9040627,0.000411,120]
[400010257,1767018282290,-154.9040627,0.000411,120]
[400010258,1767018282330,-154.9040627,0.000411,120]
[400010259,1767018282369,-154.9040627,0.000411,120]
[400010260,1767018282410,-154.9040627,0.000411,120]
[400010261,1767018282450,-154.9040627,0.000411,120]
[400010262,1767018282488,-154.9040627,0.000411,120]
[400010263,1767018282528,-154.9040627,0.000411,120]
[400010264,1767018282571,-154.9040627,0.000411,120]
[400010265,1767018282612,-154.9040627,0.000411,120]
[400010266,1767018282650,-154.9040627,0.000411,120]
[400010267,1767018282689,-154.9040627,0.000411,120]
[400010268,1767018282870,-154.9040627,0.000411,120]
[400010269,1767018282914,-154.9040627,0.000411,120]
[400010270,1767018282954,-154.9040627,0.000411,120]
[400010271,1767018282992,-154.9040627,0.000411,120]
[400010272,1767018283033,-154.9040627,0.000411,120]
[400010273,1767018283073,-154.9040627,0.000411,120]
[400010274,1767018283113,-154.9040627,0.000411,120]
[400010275,1767018283154,-154.9,0.000411,120]
[400010276,1767018283198,-2210.89,0.00041123,120]
[400010277,1767018283240,-1041.66666667,0.000412,120]
[400010278,1767018283283,-1041.66666667,0.000412,30]
[400010279,1767018283327,-2210.89,0.00041223,120]
[400010280,1767018283371,-764.28907554,0.00041272,120]